[Event "22nd Hoogeveen Open 2018"]
[Site "Hoogeveen"]
[Date "2018.10.25"]
[Round "7"]
[White "Baskin, Robert"]
[Black "Ojas Kulkarni"]
[Result "1/2-1/2"]
[ECO "A50"]
[WhiteElo "2348"]
[BlackElo "2254"]
[Annotator "NA"]
[PlyCount "40"]
[EventDate "2018.10.20"]
[EventType "swiss"]
[EventCountry "NED"]
[SourceTitle "playchess.com"]
[Source "ChessBase"]
[SourceQuality "1"]
[TimeControl "40/5400+30:1800+30"]

{[%evp 8,40,54,55,60,32767,32767,32767,32767,32767,32767,32767,62,36,70,33,50,-10,0,18,0,0,6,-59,0,32767,32767,32767,32767,-54,-50,-48,0,32767,-191]} 1. d4 {[%emt 0:00:53]} Nf6 {[%emt 0:00:00]} 2. c4 {[%emt 0:00:09]} b6 {[%emt 0:01:35]} 3. Nc3 {[%emt 0:01:18]} Bb7 {[%emt 0:00:07]} 4. Qc2 {[%emt 0:00:45]} g6 {[%emt 0:04:18] A50: Queen's Fianchetto Defence (1 d4 Nf6 2 c4 b6)} (4... d5 5. cxd5 Nxd5 6. Nf3 Nxc3 7. bxc3 g6 8. e4 Bg7 9. Bb5+ c6 10. Be2 O-O 11. O-O Nd7 12. Bg5 Re8 13. Rad1 Qc7 14. e5 {1-0 (53) Paravyan,D (2629)-Gordievsky,D (2615) Moscow 2018}) 5. e4 {[%emt 0:02:01] LiveBook: 7 Games} Bg7 {[%emt 0:00:17]} 6. Be2 {[%emt 0:07:57]} d6 {[%emt 0:01:45]} 7. Be3 {[%emt 0:00:49]} c5 $146 {[%emt 0:03:41]} ({Predecessor:} 7... Nbd7 8. Nf3 O-O 9. Nd2 e5 10. d5 Qe7 {1-0 (52) Saint,A (1804)-Dizdarevic,M (1912) Melbourne 2010}) 8. d5 {[%emt 0:00:38]} O-O {[%emt 0:00:08]} 9. g4 {[%emt 0:07:26]} e6 {[%emt 0:02:26]} 10. g5 {[%emt 0:00:41]} Ne8 {[%emt 0:01:56]} 11. h4 {[%emt 0:00:37]} exd5 {[%emt 0:10:26]} 12. exd5 {[%emt 0:00:10]} (12. cxd5 $16 Na6 13. h5) 12... Nc7 {[%emt 0:10:27]} 13. h5 {[%emt 0:03:53]} b5 {[%emt 0:02:22]} 14. O-O-O {[%emt 0:04:45]} bxc4 {[%emt 0:01:19]} 15. hxg6 {[%emt 0:10:27]} (15. Qe4 $1 $11) 15... hxg6 {[%emt 0:00:32]} 16. f4 {[%emt 0:13:00]} Re8 {[%emt 0:05:28]} 17. Bf2 {[%emt 0:01:07]} Bc8 {[%emt 0:09:05]} 18. Bxc4 {[%emt 0:03:39]} Nd7 {[%emt 0:00:23]} 19. Bd3 {[%emt 0:05:14]} Nb6 {[%emt 0:04:40]} 20. Be4 {[%emt 0:11:29]} Rb8 $19 {[%emt 0:03:50]} 1/2-1/2

[Event "22nd Hoogeveen Open 2018"]
[Site "Hoogeveen"]
[Date "2018.10.25"]
[Round "7"]
[White "Bertholee, Rob"]
[Black "Dev, Shah"]
[Result "1-0"]
[ECO "B13"]
[WhiteElo "2334"]
[BlackElo "2146"]
[Annotator "ChessBase"]
[PlyCount "109"]
[EventDate "2018.10.20"]
[EventType "swiss"]
[EventCountry "NED"]
[SourceTitle "playchess.com"]
[Source "ChessBase"]
[SourceQuality "1"]
[TimeControl "40/5400+30:1800+30"]

1. c4 {[%emt 0:00:00]} c6 {[%emt 0:00:59]} 2. e4 {[%emt 0:00:00]} d5 {[%emt 0:00:11]} 3. exd5 {[%emt 0:00:00]} cxd5 {[%emt 0:00:06]} 4. d4 {[%emt 0:00:00]} Nf6 {[%emt 0:01:50]} 5. Nc3 {[%emt 0:00:03]} Nc6 {[%emt 0:00:35]} 6. Bg5 {[%emt 0:02:24]} Ne4 {[%emt 0:12:38]} 7. Nxe4 {[%emt 0:02:33]} dxe4 {[%emt 0:00:13]} 8. d5 {[%emt 0:00:17]} Nb8 {[%emt 0:02:14]} 9. Qd4 {[%emt 0:04:41]} Bf5 {[%emt 0:01:12]} 10. Ne2 {[%emt 0:01:29]} f6 {[%emt 0:01:14]} 11. Be3 {[%emt 0:32:44]} e5 {[%emt 0:01:12]} 12. Qd2 {[%emt 0:07:09]} Na6 {[%emt 0:05:30]} 13. a3 {[%emt 0:00:21]} Rc8 {[%emt 0:02:15]} 14. b4 {[%emt 0:02:52]} Bg6 {[%emt 0:12:35]} 15. Nc3 {[%emt 0:05:44]} f5 {[%emt 0:06:27]} 16. Bg5 {[%emt 0:07:13]} Be7 {[%emt 0:03:09]} 17. Bxe7 {[%emt 0:00:09]} Qxe7 {[%emt 0:00:06]} 18. d6 {[%emt 0:00:33]} Qf7 {[%emt 0:03:01]} 19. Nd5 {[%emt 0:03:50]} Nb8 {[%emt 0:03:00]} 20. c5 {[%emt 0:00:41]} Nc6 {[%emt 0:00:46]} 21. Bb5 {[%emt 0:00:19]} f4 {[%emt 0:01:16]} 22. Ne7 {[%emt 0:03:43]} Kd7 {[%emt 0:01:22]} 23. Bxc6+ {[%emt 0:02:03]} bxc6 {[%emt 0:01:02]} 24. O-O {[%emt 0:08:57]} Qe6 {[%emt 0:04:25]} 25. f3 {[%emt 0:03:46]} exf3 {[%emt 0:03:45]} 26. Rxf3 {[%emt 0:00:06]} Rcf8 {[%emt 0:05:18]} 27. Re1 {[%emt 0:01:23]} Bh5 {[%emt 0:01:20]} 28. Rf2 {[%emt 0:00:32]} f3 {[%emt 0:01:33]} 29. Qg5 {[%emt 0:02:50]} g6 {[%emt 0:02:19]} 30. Rxe5 {[%emt 0:02:25]} Qb3 {[%emt 0:03:21]} 31. Re1 {[%emt 0:02:56]} Qc3 {[%emt 0:02:20]} 32. Qd2 {[%emt 0:00:39]} Qxd2 {[%emt 0:03:15]} 33. Rxd2 {[%emt 0:00:00]} fxg2 {[%emt 0:00:02]} 34. Kxg2 {[%emt 0:00:59]} a6 {[%emt 0:00:58]} 35. Rf1 {[%emt 0:00:55]} Rxf1 {[%emt 0:01:02]} 36. Kxf1 {[%emt 0:00:01]} Rf8+ {[%emt 0:00:01]} 37. Rf2 {[%emt 0:00:01]} Rxf2+ {[%emt 0:00:45]} 38. Kxf2 {[%emt 0:00:02]} g5 {[%emt 0:02:08]} 39. Ke3 {[%emt 0:00:06]} Bf7 {[%emt 0:00:26]} 40. Ke4 {[%emt 0:00:17]} Be6 {[%emt 0:00:11]} 41. Ke5 {[%emt 0:30:19]} Bh3 {[%emt 0:30:29]} 42. Kf6 {[%emt 0:00:17]} g4 {[%emt 0:00:12]} 43. Kg5 {[%emt 0:00:33]} Bf1 {[%emt 0:00:56]} 44. Kxg4 {[%emt 0:00:10]} Bd3 {[%emt 0:00:04]} 45. Kg5 {[%emt 0:00:23]} Bc2 {[%emt 0:00:06]} 46. h4 {[%emt 0:00:14]} Bb1 {[%emt 0:00:06]} 47. h5 {[%emt 0:00:16]} Be4 {[%emt 0:00:06]} 48. Kf6 {[%emt 0:00:14]} Bf3 {[%emt 0:00:09]} 49. h6 {[%emt 0:00:06]} Be4 {[%emt 0:00:05]} 50. Ng8 {[%emt 0:00:36]} Bg6 {[%emt 0:00:22]} 51. Kg7 {[%emt 0:00:07]} Ke6 {[%emt 0:00:05]} 52. Nf6 {[%emt 0:00:06]} Bf5 {[%emt 0:00:08]} 53. Nxh7 {[%emt 0:00:09]} Bxh7 {[%emt 0:00:08]} 54. Kxh7 {[%emt 0:00:07]} Kf7 {[%emt 0:00:03]} 55. a4 {[%emt 0:00:10]} 1-0

[Event "22nd Hoogeveen Open 2018"]
[Site "Hoogeveen"]
[Date "2018.10.25"]
[Round "7"]
[White "De Jong, Migchiel"]
[Black "Sparenberg, Erik"]
[Result "1-0"]
[ECO "D45"]
[WhiteElo "2309"]
[BlackElo "2224"]
[Annotator "ChessBase"]
[PlyCount "71"]
[EventDate "2018.10.20"]
[EventType "swiss"]
[EventCountry "NED"]
[SourceTitle "playchess.com"]
[Source "ChessBase"]
[SourceQuality "1"]
[TimeControl "40/5400+30:1800+30"]

1. c4 {[%emt 0:00:00]} Nf6 {[%emt 0:00:00]} 2. d4 {[%emt 0:00:00]} c6 {[%emt 0:00:26]} 3. Nf3 {[%emt 0:00:42]} d5 {[%emt 0:00:02]} 4. Nc3 {[%emt 0:00:51]} e6 {[%emt 0:00:58]} 5. e3 {[%emt 0:00:47]} Nbd7 {[%emt 0:00:30]} 6. Qc2 {[%emt 0:01:12]} Be7 {[%emt 0:00:40]} 7. Bd3 {[%emt 0:01:34]} dxc4 {[%emt 0:00:47]} 8. Bxc4 {[%emt 0:00:11]} b5 {[%emt 0:00:07]} 9. Be2 {[%emt 0:01:15]} Bb7 {[%emt 0:00:11]} 10. O-O {[%emt 0:01:16]} a6 {[%emt 0:08:46]} 11. e4 {[%emt 0:07:23]} c5 {[%emt 0:04:05]} 12. d5 {[%emt 0:05:12]} exd5 {[%emt 0:02:16]} 13. Nxd5 {[%emt 0:01:31]} Nxd5 {[%emt 0:11:21]} 14. exd5 {[%emt 0:00:07]} Bxd5 {[%emt 0:04:18]} 15. Rd1 {[%emt 0:00:13]} Be6 {[%emt 0:00:33]} 16. Ne5 {[%emt 0:02:24]} Qc7 {[%emt 0:16:36]} 17. Qe4 {[%emt 0:04:48]} Rc8 {[%emt 0:05:35]} 18. Bf4 {[%emt 0:04:43]} Nf6 {[%emt 0:07:28]} 19. Qf3 {[%emt 0:00:29]} Qb6 {[%emt 0:01:27]} 20. a4 {[%emt 0:00:23]} c4 {[%emt 0:05:46]} 21. a5 {[%emt 0:06:14]} Qc5 {[%emt 0:00:22]} 22. Qb7 {[%emt 0:01:35]} O-O {[%emt 0:07:29]} 23. Bf3 {[%emt 0:00:26]} g5 {[%emt 0:06:42]} 24. Bg3 {[%emt 0:00:41]} Rc7 {[%emt 0:03:45]} 25. Qxa6 {[%emt 0:00:55]} g4 {[%emt 0:03:49]} 26. Nc6 {[%emt 0:03:01]} gxf3 {[%emt 0:03:52]} 27. Bxc7 {[%emt 0:00:10]} Ne4 {[%emt 0:02:54]} 28. Nxe7+ {[%emt 0:00:44]} Qxe7 {[%emt 0:00:12]} 29. Bg3 {[%emt 0:01:24]} fxg2 {[%emt 0:02:06]} 30. Qxb5 {[%emt 0:01:45]} Ng5 {[%emt 0:00:22]} 31. Ra3 {[%emt 0:07:04]} Rd8 {[%emt 0:00:41]} 32. Bd6 {[%emt 0:04:31]} Rxd6 {[%emt 0:00:50]} 33. Qb8+ {[%emt 0:00:20]} Kg7 {[%emt 0:00:46]} 34. Qxd6 {[%emt 0:00:08]} Qb7 {[%emt 0:00:46]} 35. Rg3 {[%emt 0:00:20]} h6 {[%emt 0:00:30]} 36. h4 {[%emt 0:01:31]} 1-0

[Event "22nd Hoogeveen Open 2018"]
[Site "Hoogeveen"]
[Date "2018.10.25"]
[Round "7"]
[White "De Boer, Eelke"]
[Black "Van Delft, Merijn"]
[Result "1-0"]
[ECO "B94"]
[WhiteElo "2285"]
[BlackElo "2381"]
[Annotator "ChessBase"]
[PlyCount "105"]
[EventDate "2018.10.20"]
[EventType "swiss"]
[EventCountry "NED"]
[SourceTitle "playchess.com"]
[Source "ChessBase"]
[SourceQuality "1"]
[TimeControl "40/5400+30:1800+30"]

1. e4 {[%emt 0:00:00]} c5 {[%emt 0:00:00]} 2. Nf3 {[%emt 0:00:00]} d6 {[%emt 0:00:00]} 3. d4 {[%emt 0:00:00]} cxd4 {[%emt 0:00:00]} 4. Nxd4 {[%emt 0:00:00]} Nf6 {[%emt 0:00:00]} 5. Nc3 {[%emt 0:00:00]} a6 {[%emt 0:00:00]} 6. Bg5 {[%emt 0:00:06]} Nbd7 {[%emt 0:00:22]} 7. Qe2 {[%emt 0:00:08]} Qa5 {[%emt 0:00:15]} 8. Bd2 {[%emt 0:00:18]} g6 {[%emt 0:00:52]} 9. g4 {[%emt 0:16:28]} Bg7 {[%emt 0:00:53]} 10. Nb3 {[%emt 0:09:58]} Qd8 {[%emt 0:01:24]} 11. Bg2 {[%emt 0:03:52]} O-O {[%emt 0:14:09]} 12. O-O-O {[%emt 0:06:28]} a5 {[%emt 0:07:02]} 13. Be3 {[%emt 0:07:21]} a4 {[%emt 0:04:44]} 14. Nd4 {[%emt 0:00:08]} a3 {[%emt 0:08:47]} 15. b3 {[%emt 0:01:17]} Qa5 {[%emt 0:04:55]} 16. Ncb5 {[%emt 0:15:11]} Nc5 {[%emt 0:11:28]} 17. Bd2 {[%emt 0:07:00]} Qb6 {[%emt 0:01:05]} 18. g5 {[%emt 0:01:37]} Nfxe4 {[%emt 0:09:03]} 19. Bxe4 {[%emt 0:06:21]} Nxe4 {[%emt 0:00:21]} 20. Qxe4 {[%emt 0:00:06]} e5 {[%emt 0:00:22]} 21. Be3 {[%emt 0:02:39]} exd4 {[%emt 0:00:33]} 22. Nxd4 {[%emt 0:00:05]} Qb4 {[%emt 0:10:29]} 23. Qd3 {[%emt 0:02:56]} Bg4 {[%emt 0:06:03]} 24. Qd2 {[%emt 0:06:51]} Qc5 {[%emt 0:05:02]} 25. f3 {[%emt 0:02:19]} Bh5 {[%emt 0:01:12]} 26. Qd3 {[%emt 0:04:31]} Rfe8 {[%emt 0:03:01]} 27. Rhe1 {[%emt 0:01:30]} Rac8 {[%emt 0:01:44]} 28. Kb1 {[%emt 0:02:43]} Qc3 {[%emt 0:09:04]} 29. Qxc3 {[%emt 0:00:51]} Rxc3 {[%emt 0:00:02]} 30. Bf2 {[%emt 0:01:03]} Rec8 {[%emt 0:00:38]} 31. Rd2 {[%emt 0:03:10]} Be5 {[%emt 0:00:49]} 32. h4 {[%emt 0:00:32]} Bxf3 {[%emt 0:01:03]} 33. Nb5 {[%emt 0:00:29]} R3c6 {[%emt 0:00:26]} 34. Na7 {[%emt 0:00:30]} Bc3 {[%emt 0:00:28]} 35. Nxc6 {[%emt 0:00:22]} Bxc6 {[%emt 0:00:18]} 36. Rxd6 {[%emt 0:00:23]} Bxe1 {[%emt 0:00:21]} 37. Bxe1 {[%emt 0:00:05]} Be4 {[%emt 0:00:13]} 38. Rd2 {[%emt 0:00:35]} f5 {[%emt 0:00:39]} 39. gxf6 {[%emt 0:00:39]} Kf7 {[%emt 0:00:10]} 40. Re2 {[%emt 0:00:54]} Bf5 {[%emt 0:00:53]} 41. Bb4 {[%emt 0:02:23]} Kxf6 {[%emt 0:01:29]} 42. Bxa3 {[%emt 0:04:51]} h6 {[%emt 0:03:30]} 43. Bb2+ {[%emt 0:00:55]} Kf7 {[%emt 0:00:09]} 44. Bc1 {[%emt 0:00:10]} g5 {[%emt 0:00:54]} 45. hxg5 {[%emt 0:00:18]} h5 {[%emt 0:00:07]} 46. Kb2 {[%emt 0:01:40]} h4 {[%emt 0:00:26]} 47. c4 {[%emt 0:00:21]} h3 {[%emt 0:00:19]} 48. Bf4 {[%emt 0:03:02]} Kg6 {[%emt 0:00:48]} 49. Re7 {[%emt 0:03:45]} b5 {[%emt 0:02:05]} 50. cxb5 {[%emt 0:02:15]} Rc2+ {[%emt 0:00:27]} 51. Ka3 {[%emt 0:00:12]} Rf2 {[%emt 0:00:18]} 52. b6 {[%emt 0:02:12]} Bc8 {[%emt 0:01:23]} 53. Bb8 {[%emt 0:01:28]} 1-0

[Event "22nd Hoogeveen Open 2018"]
[Site "Hoogeveen"]
[Date "2018.10.25"]
[Round "7"]
[White "Bluhm, Sonja Maria"]
[Black "Murray, David"]
[Result "1/2-1/2"]
[ECO "C01"]
[WhiteElo "2281"]
[BlackElo "2222"]
[Annotator "NA"]
[PlyCount "61"]
[EventDate "2018.10.20"]
[EventType "swiss"]
[EventCountry "NED"]
[SourceTitle "playchess.com"]
[Source "ChessBase"]
[SourceQuality "1"]
[TimeControl "40/5400+30:1800+30"]

{[%evp 11,52,9,14,4,6,-13,0,0,-8,-2,32767,32767,32767,32767,0,-16,-14,-20,-7,-16,-9,-21,-5,-41,-66,-46,-46,-60,32767,-77,-43,-33,-61,-52,32767,32767,32767,-1,0,0,32767,32767,-106]} 1. e4 {[%emt 0:00:00]} e6 {[%emt 0:00:00]} 2. d4 {[%emt 0:00:47]} d5 {[%emt 0:00:00]} 3. exd5 {[%emt 0:00:15]} exd5 {[%emt 0:00:00]} 4. Bd3 {[%emt 0:00:08]} Bd6 {[%emt 0:00:27]} 5. h3 {[%emt 0:01:20]} Ne7 {[%emt 0:01:44]} 6. Nf3 {[%emt 0:00:54]} Bf5 {[%emt 0:01:38]} 7. O-O {[%emt 0:00:26]} O-O {[%emt 0:01:38]} 8. Nc3 {[%emt 0:06:01] C01: French: Exchange Variation} c6 {[%emt 0:01:41]} 9. Re1 {[%emt 0:01:24] LiveBook: 3 Games} Bxd3 {[%emt 0:00:50]} 10. Qxd3 {[%emt 0:00:07]} Nd7 {[%emt 0:03:25]} 11. Bg5 {[%emt 0:01:57]} Re8 {[%emt 0:03:06]} 12. Ne2 $146 {[%emt 0:08:33]} ({Predecessor:} 12. Bxe7 Rxe7 13. Rxe7 Bxe7 14. Re1 Bf8 {½-½ (14) Haba,P (2493)-Blatny,P (2444) Ostrava 2002}) 12... Qc7 {[%emt 0:03:31]} 13. Bh4 {[%emt 0:00:47]} Ng6 {[%emt 0:02:11]} 14. Bg3 {[%emt 0:00:35]} Nf6 {[%emt 0:06:30]} 15. Bxd6 {[%emt 0:06:02]} Qxd6 {[%emt 0:00:08]} 16. Ng3 {[%emt 0:05:04]} Nf4 {[%emt 0:07:50]} 17. Qf5 {[%emt 0:07:23]} g6 {[%emt 0:10:12]} 18. Qg5 {[%emt 0:00:19]} Ne4 {[%emt 0:01:03]} 19. Nxe4 {[%emt 0:23:36]} Rxe4 {[%emt 0:04:48]} 20. c3 {[%emt 0:03:21]} Rae8 {[%emt 0:03:17]} 21. Rxe4 {[%emt 0:04:18]} Rxe4 {[%emt 0:01:05]} 22. Re1 {[%emt 0:02:48]} Qe6 {[%emt 0:08:11]} 23. Rxe4 {[%emt 0:02:57]} Qxe4 {[%emt 0:01:54]} 24. Qf6 {[%emt 0:01:36]} Nd3 {[%emt 0:02:27]} 25. Ne5 $11 {[%emt 0:03:02]} Nxe5 {[%emt 0:02:13]} 26. dxe5 {[%emt 0:00:10]} Qb1+ {[%emt 0:00:55]} 27. Kh2 {[%emt 0:00:05]} Qxb2 {[%emt 0:00:56]} 28. Qd8+ {[%emt 0:00:24]} Kg7 {[%emt 0:00:06]} 29. Qf6+ {[%emt 0:00:29]} Kg8 {[%emt 0:00:18]} 30. Qd8+ {[%emt 0:00:22]} Kg7 {[%emt 0:00:06]} 31. Qf6+ {[%emt 0:00:19]} 1/2-1/2

[Event "22nd Hoogeveen Open 2018"]
[Site "Hoogeveen"]
[Date "2018.10.25"]
[Round "7"]
[White "Schippers, Maurice"]
[Black "Ingebretsen, Jens E"]
[Result "1/2-1/2"]
[ECO "B28"]
[WhiteElo "2272"]
[BlackElo "2160"]
[Annotator "NA"]
[PlyCount "139"]
[EventDate "2018.10.20"]
[EventType "swiss"]
[EventCountry "NED"]
[SourceTitle "playchess.com"]
[Source "ChessBase"]
[SourceQuality "1"]
[TimeControl "40/5400+30:1800+30"]

1. e4 {[%emt 0:00:00]} c5 {[%emt 0:09:05]} 2. Nf3 {[%emt 0:00:25]} a6 {[%emt 0:00:09]} 3. c3 {[%emt 0:00:49]} d5 {[%emt 0:00:06]} 4. exd5 {[%emt 0:00:45]} Qxd5 {[%emt 0:00:07]} 5. d4 {[%emt 0:01:00]} e6 {[%emt 0:00:07]} 6. Be3 {[%emt 0:01:41]} Nd7 {[%emt 0:00:33] B28: Sicilian: 2 Nf3 a6 (O'Kelly Variation)} 7. Be2 {[%emt 0:01:43]} Ngf6 {[%emt 0:00:22]} 8. O-O {[%emt 0:02:10] LiveBook: 3 Games} Bd6 {[%emt 0:02:16]} 9. c4 $146 {[%emt 0:06:50]} ({Predecessor:} 9. h3 O-O 10. a4 b6 11. c4 Qc6 12. Nc3 Bb7 13. d5 exd5 14. cxd5 {0-1 (41) Proschmann,T (2092)-Poetsch,H (2513) Dresden 2018}) 9... Qc6 {[%emt 0:00:23]} 10. h3 {[%emt 0:03:47]} O-O {[%emt 0:00:50]} 11. Nc3 {[%emt 0:00:05]} Qc7 {[%emt 0:02:54]} 12. dxc5 {[%emt 0:03:24]} Nxc5 {[%emt 0:03:15]} 13. b4 {[%emt 0:03:38]} Nce4 {[%emt 0:00:51]} 14. Nxe4 {[%emt 0:01:31]} Nxe4 {[%emt 0:00:06]} 15. Qd4 {[%emt 0:03:20]} f5 {[%emt 0:01:45]} 16. c5 {[%emt 0:04:33]} Be7 {[%emt 0:01:25]} 17. Rac1 {[%emt 0:03:07]} Bd7 {[%emt 0:06:41]} 18. Bf4 {[%emt 0:06:56]} Qd8 {[%emt 0:04:31]} 19. Bc4 {[%emt 0:05:30]} Bf6 {[%emt 0:01:53]} 20. Be5 {[%emt 0:02:20]} Qe7 {[%emt 0:02:34]} 21. Bxf6 {[%emt 0:15:28]} gxf6 {[%emt 0:01:52]} 22. Rfe1 {[%emt 0:01:55]} Kh8 {[%emt 0:03:30]} 23. Nd2 {[%emt 0:03:42]} Bc6 {[%emt 0:02:47]} (23... e5 $11 24. Qe3 Nxd2 25. Qxd2 Rad8) 24. Nxe4 {[%emt 0:00:43]} fxe4 {[%emt 0:08:29]} 25. a4 {[%emt 0:00:36]} Rad8 {[%emt 0:02:05]} 26. Qe3 {[%emt 0:01:31]} f5 {[%emt 0:03:47]} 27. b5 {[%emt 0:01:12]} axb5 {[%emt 0:00:08]} 28. axb5 {[%emt 0:00:01]} Bd5 {[%emt 0:00:11]} 29. Bf1 {[%emt 0:03:46]} Qg7 {[%emt 0:07:18]} 30. Rc2 {[%emt 0:04:31]} Rf6 {[%emt 0:01:32]} 31. c6 {[%emt 0:05:55]} bxc6 {[%emt 0:00:48]} 32. bxc6 {[%emt 0:00:01]} Rc8 {[%emt 0:06:41]} 33. Rb1 {[%emt 0:01:11]} Rf7 {[%emt 0:01:37]} (33... f4 $5 {[%cal Rf4e3]} 34. Qc5 Rff8 $14) 34. Qf4 {[%emt 0:04:07]} Rfc7 {[%emt 0:01:58]} 35. Rbc1 {[%emt 0:04:46]} h6 {[%emt 0:03:06]} ({Don't blunder} 35... Bxc6 $2 36. Qd6 $18) 36. Ba6 {[%emt 0:00:40]} Rg8 {[%emt 0:01:00]} 37. g3 {[%emt 0:00:29]} Rf8 {[%emt 0:01:32]} 38. Rc5 {[%emt 0:01:34]} Ra8 {[%emt 0:03:43]} ({Better is} 38... Rff7 $14) 39. Bc4 {[%emt 0:01:02]} Ra3 {[%emt 0:01:57]} 40. Bxd5 {[%emt 0:02:29]} Rf3 {[%emt 0:00:22]} 41. Qh4 {[%emt 0:06:55]} exd5 {[%emt 0:00:50]} 42. Kg2 {[%emt 0:04:00]} f4 {[%emt 0:14:24]} 43. g4 {[%emt 0:05:26]} d4 {[%emt 0:14:07]} (43... Qg5 $142 44. Qxg5 hxg5 45. Rxd5 Rd3 46. Rxg5 e3 47. fxe3 fxe3) 44. Rd5 {[%emt 0:04:19]} Rc3 {[%emt 0:02:16]} 45. Rxc3 {[%emt 0:07:39]} dxc3 {[%emt 0:00:15]} 46. Qd8+ {[%emt 0:02:22]} Kh7 {[%emt 0:01:13]} 47. Rd7 $11 {[%emt 0:01:08]} ({White has to play} 47. Rc5 $18) 47... Rxd7 {[%emt 0:00:25]} 48. cxd7 {[%emt 0:00:34]} f3+ {[%emt 0:02:28]} 49. Kg3 {[%emt 0:00:44]} Qe5+ {[%emt 0:01:03]} 50. Kh4 {[%emt 0:00:00]} c2 {[%emt 0:00:49]} 51. Qf8 {[%emt 0:00:50]} Qg5+ {[%emt 0:04:53]} 52. Kg3 {[%emt 0:00:01]} c1=Q {[%emt 0:02:10]} 53. Qf7+ {[%emt 0:00:09]} Qg7 {[%emt 0:01:06]} 54. Qxg7+ {[%emt 0:01:26]} Kxg7 {[%emt 0:00:02]} 55. d8=Q {[%emt 0:00:09]} Qg1+ {[%emt 0:01:41]} 56. Kf4 {[%emt 0:00:16]} Qxf2 {[%emt 0:00:24]} 57. Qe7+ {[%emt 0:00:08]} Kg8 {[%emt 0:00:25]} 58. Qe6+ {[%emt 0:00:13]} Kg7 {[%emt 0:00:31]} 59. Qe5+ {[%emt 0:00:05]} Kg8 {[%emt 0:01:03]} 60. Qxe4 {[%emt 0:01:49]} Qh2+ {[%emt 0:00:49]} 61. Kxf3 {[%emt 0:01:20]} Qxh3+ {[%emt 0:00:10]} 62. Kf4 {[%emt 0:00:35]} Qf1+ {[%emt 0:00:22]} 63. Ke5 {[%emt 0:00:34]} Kg7 {[%emt 0:00:19]} 64. Qb7+ {[%emt 0:00:45]} Qf7 {[%emt 0:00:11]} 65. Qxf7+ {[%emt 0:00:35]} Kxf7 {[%emt 0:00:01]} 66. Kf5 {[%emt 0:00:07]} Kg7 {[%emt 0:00:09]} 67. g5 {[%emt 0:00:09]} h5 {[%emt 0:00:07]} 68. g6 {[%emt 0:00:07]} h4 {[%emt 0:00:04]} 69. Kg4 {[%emt 0:00:03]} Kxg6 {[%emt 0:00:09]} 70. Kxh4 {[%emt 0:00:02]} 1/2-1/2

[Event "22nd Hoogeveen Open 2018"]
[Site "Hoogeveen"]
[Date "2018.10.25"]
[Round "7"]
[White "Elgersma, Simon"]
[Black "Vroombout, Enrico"]
[Result "0-1"]
[ECO "C06"]
[WhiteElo "2237"]
[BlackElo "2132"]
[Annotator "NA"]
[PlyCount "100"]
[EventDate "2018.10.20"]
[EventType "swiss"]
[EventCountry "NED"]
[SourceTitle "playchess.com"]
[Source "ChessBase"]
[SourceQuality "1"]
[TimeControl "40/5400+30:1800+30"]

1. e4 {[%emt 0:00:00]} e6 {[%emt 0:00:00]} 2. d4 {[%emt 0:00:00]} d5 {[%emt 0:00:00]} 3. Nd2 {[%emt 0:00:00]} Nf6 {[%emt 0:00:00]} 4. e5 {[%emt 0:00:00]} Nfd7 {[%emt 0:00:00]} 5. c3 {[%emt 0:00:23]} c5 {[%emt 0:00:00]} 6. Bd3 {[%emt 0:00:10]} Nc6 {[%emt 0:00:03]} 7. Ngf3 {[%emt 0:00:06]} a5 {[%emt 0:19:43]} 8. O-O {[%emt 0:09:18] C06: French Tarrasch: 3...Nf6 4 e5 Nfd7 5 Bd3 main lines} a4 {[%emt 0:00:14]} 9. Re1 {[%emt 0:10:56]} cxd4 {[%emt 0:08:10]} (9... h6 10. a3 Nb6 11. Nf1 Bd7 12. Ng3 Rc8 13. dxc5 Bxc5 14. Nh5 Kf8 15. Be3 Be7 {1-0 (63) Dominguez Perez,L (2732)-Ivanchuk,V (2710) Huaian 2016}) 10. cxd4 {[%emt 0:01:14] LiveBook: 3 Games} Bb4 $146 {[%emt 0:06:40]} ({Predecessor:} 10... Nb6 11. Nf1 Bd7 12. Bg5 Be7 13. Bxe7 Qxe7 14. Rc1 Nb4 15. Bb1 Bb5 16. a3 Bxf1 17. Rxf1 {1-0 (63) Popovic,D (2474)-Feygin,M (2486) playchess.com INT 2005}) 11. a3 {[%emt 0:06:20]} Be7 {[%emt 0:00:03]} 12. Nf1 {[%emt 0:08:33]} Nb6 {[%emt 0:00:15]} 13. Ng3 {[%emt 0:15:02]} h5 {[%emt 0:07:59]} 14. Ne2 {[%emt 0:06:28]} Na5 {[%emt 0:07:36]} 15. Be3 {[%emt 0:05:13]} Nb3 {[%emt 0:08:39]} 16. Rb1 {[%emt 0:00:39]} Bd7 {[%emt 0:07:25]} 17. Nc3 {[%emt 0:02:38]} Bc6 {[%emt 0:04:02]} 18. Qe2 {[%emt 0:06:38]} Rc8 {[%emt 0:03:04]} 19. Red1 {[%emt 0:05:02]} Bd7 {[%emt 0:16:33]} 20. Nb5 {[%emt 0:08:11]} Nc4 {[%emt 0:01:33]} 21. Bxc4 {[%emt 0:02:24]} Rxc4 {[%emt 0:00:48]} 22. Nd6+ {[%emt 0:00:19]} Bxd6 $1 {[%emt 0:00:12]} 23. exd6 {[%emt 0:00:02]} f6 {[%emt 0:01:28]} 24. Nh4 {[%emt 0:02:26]} g5 {[%emt 0:01:10]} (24... Kf7 $15) 25. Qd3 {[%emt 0:04:31]} gxh4 {[%emt 0:04:27]} 26. Qg6+ {[%emt 0:00:07]} Kf8 {[%emt 0:00:03]} 27. Bh6+ {[%emt 0:00:58]} Rxh6 {[%emt 0:00:04]} 28. Qxh6+ {[%emt 0:00:06]} Kg8 {[%emt 0:00:11]} 29. Qg6+ {[%emt 0:01:28]} Kf8 {[%emt 0:03:07]} 30. Qxh5 {[%emt 0:03:44]} Be8 {[%emt 0:00:47]} 31. Qh8+ {[%emt 0:00:54]} Kf7 {[%emt 0:00:03]} 32. Qh7+ {[%emt 0:01:19]} ({Much weaker is} 32. Qxh4 Qxd6 33. Rd3 Ke7 $15) 32... Kf8 {[%emt 0:00:04]} 33. Qh8+ {[%emt 0:00:37]} Kf7 {[%emt 0:00:03]} 34. Qh7+ {[%emt 0:00:40]} Kf8 {[%emt 0:00:09]} 35. Rd3 {[%emt 0:00:03]} Qxd6 {[%emt 0:01:11]} 36. Rf3 {[%emt 0:00:01]} f5 {[%emt 0:00:49]} 37. g4 {[%emt 0:00:15]} Nxd4 {[%emt 0:00:43]} 38. Rh3 {[%emt 0:01:25]} fxg4 {[%emt 0:00:51]} 39. Qh8+ {[%emt 0:00:47]} Ke7 {[%emt 0:00:35]} 40. Qxh4+ {[%emt 0:00:20]} Kd7 {[%emt 0:00:15]} 41. Qxg4 {[%emt 0:03:06]} Qf4 {[%emt 0:14:54]} 42. Rh7+ {[%emt 0:05:45]} Kc6 {[%emt 0:01:58]} 43. Qg7 {[%emt 0:02:46]} (43. Qxf4 $142 Ne2+ 44. Kf1 Nxf4 45. Rh8) 43... Qg5+ {[%emt 0:00:43]} 44. Qxg5 {[%emt 0:03:27]} Nf3+ {[%emt 0:00:02]} 45. Kg2 {[%emt 0:00:26]} Nxg5 {[%emt 0:00:03]} 46. Rh8 {[%emt 0:00:09]} Bg6 {[%emt 0:04:09]} 47. Re1 {[%emt 0:01:26]} Rg4+ {[%emt 0:00:14]} 48. Kh1 {[%emt 0:01:21]} Be4+ {[%emt 0:00:14]} 49. Rxe4 $19 {[%emt 0:00:07]} Nxe4 {[%emt 0:00:49]} 50. f3 {[%emt 0:01:02]} Nf2# {[%emt 0:00:04]} 0-1